[Event "44th Chess Olympiad Women 2022"]
[Site "Chennai"]
[Date "2022.08.05"]
[Round "7.31"]
[White "Paasikangas, Johanna"]
[Black "Ofowino, Toritsemuwa"]
[Result "1/2-1/2"]
[WhiteElo "2155"]
[BlackElo "1870"]
[Annotator "TA"]
[PlyCount "141"]
[EventDate "2022.??.??"]
[TimeControl "60"]

{[%evp 9,141,29,40,29,45,18,36,30,25,10,89,56,89,91,80,52,79,26,48,31,55,41,91,
83,102,98,116,113,135,104,94,99,95,66,74,72,85,87,28,44,85,54,108,39,55,52,64,
0,0,0,60,0,0,0,0,-181,-181,-185,-174,-177,-177,-177,-142,-128,-131,-234,0,-218,
-211,-260,-240,-269,-189,-161,-101,-152,0,0,0,0,0,0,0,0,8,8,8,6,7,6,6,4,314,
254,1283,1306,1518,1337,1108,712,426,73,827,0,0,0,0,0,0,0,0,-9,0,0,0,0,0,0,0,0,
0,-9,8,8,8,-22,-22,-22,0,0,0,0,0,0]} 1. d4 {[%emt 0:00:04]} d5 {[%emt 0:00:09]}
2. c4 {[%emt 0:00:08]} c6 {[%emt 0:00:07]} 3. Nf3 {[%emt 0:00:04]} Nf6 {
[%emt 0:00:23]} 4. e3 {[%emt 0:00:09]} a6 {[%emt 0:01:04]} 5. Nbd2 {[%emt 0:00:
00]} Bf5 {[%emt 0:04:04]} 6. Nh4 {[%emt 0:02:57] D11: Slav Defence: 3 Nf3
sidelines and 3...Nf6 4 e3 Bg4.} Be4 {[%emt 0:01:29]} 7. Nxe4 {[%emt 0:03:08]}
Nxe4 {[%emt 0:01:08]} 8. Nf3 {[%emt 0:04:29] White is slightly better.} e6 {
[%emt 0:00:31] [#]} 9. c5 $146 {[%emt 0:02:14]} ({Predecessor:} 9. Bd3 Bb4+ 10.
Ke2 Nf6 11. Qb3 Qe7 12. Rd1 O-O 13. Kf1 b5 14. cxd5 cxd5 15. a4 bxa4 16. Qxa4 {
½-½ (44) Swayams,M (2477)-Godena,M (2499) Padova 2015}) 9... b5 {[%emt 0:00:
00]} (9... b6 $11) 10. Bd3 {[%emt 0:02:33]} Be7 {[%emt 0:01:31]} 11. Qc2 {
[%emt 0:00:33]} f5 {[%emt 0:09:14]} 12. O-O {[%emt 0:02:17]} Nd7 {[%emt 0:00:
00]} 13. b3 {[%emt 0:07:10]} (13. a4 $16) 13... O-O {[%emt 0:04:34]} 14. Ne1 {
[%emt 0:03:02][%cal Yf3e1,Ye1d3,Yd3b4]} Qe8 {[%emt 0:10:14]} 15. f3 {[%emt 0:
04:59]} Nef6 {[%emt 0:00:23]} ({Better is} 15... Ng5 $1 $14) 16. a4 $1 $16 {
[%emt 0:02:02]} Qh5 {[%emt 0:03:01]} 17. Be2 {[%emt 0:04:10]} Qg6 {[%emt 0:01:
28]} 18. Nd3 {[%emt 0:01:00] Inhibits e5.} Qe8 {[%emt 0:04:54]} 19. Nb4 {
[%emt 0:04:04]} Qc8 {[%emt 0:00:21]} 20. axb5 {[%emt 0:00:35]} axb5 {[%emt 0:
00:23]} 21. Bd2 {[%emt 0:00:42]} Qb7 {[%emt 0:00:26]} 22. Bd3 {[%emt 0:00:00]}
g6 {[%emt 0:07:26]} 23. e4 {[%emt 0:05:12]} (23. Rxa8 {is interesting.} Rxa8
24. e4 dxe4 25. fxe4 Bd8 26. exf5 exf5 27. Bxf5 gxf5 28. Qxf5 Ba5 29. d5) 23...
Rxa1 {[%emt 0:01:11]} 24. Rxa1 {[%emt 0:00:06]} Ra8 {[%emt 0:00:39]} 25. Re1 {
[%emt 0:02:12] Strongly threatening exd5.} Bf8 {[%emt 0:01:24]} (25... dxe4 $1
$14 26. fxe4 Nf8) 26. exf5 {[%emt 0:03:07]} (26. e5 $16 Ne8 27. Qc3) 26... exf5
$14 {[%emt 0:00:08]} 27. Re6 {[%emt 0:03:49]} Rc8 {[%emt 0:00:04]} 28. Bxf5 {
[%emt 0:09:01] White is more active.} gxf5 $11 {[%emt 0:01:19]} 29. Qxf5 {
[%emt 0:00:08]} Bg7 {[%emt 0:01:59]} ({Black should play} 29... Qa8 $1 $11 30.
Bc3 Bg7) 30. Re7 {[%emt 0:01:19]} (30. h3 $14) 30... Kh8 $1 {[%emt 0:00:00]}
31. Bg5 {[%emt 0:03:35]} Qa8 {[%emt 0:01:08]} 32. Kf2 $2 {[%emt 0:00:00] [#]} (
32. h3 $11 {and White stays safe.}) 32... Rf8 $1 $19 {[%emt 0:02:29][%cal
Yf6e4]} 33. Rxd7 {[%emt 0:04:59]} Nxd7 {[%emt 0:02:28] Discovered Attack} 34.
Qxd7 {[%emt 0:00:06]} Bxd4+ {[%emt 0:00:13]} 35. Kg3 {[%emt 0:02:13]} Rg8 {
[%emt 0:01:58]} ({And not} 35... Bxc5 36. Nxc6 Rg8 37. Kh4 $11) 36. Kh4 {
[%emt 0:03:28]} Rg6 {[%emt 0:02:34] aiming for ...Qf8.} 37. g3 {[%emt 0:05:19]}
(37. Nd3 $17 {was called for.}) 37... Qg8 $2 {[%emt 0:01:00]} ({Black should
try} 37... Bxc5 $19 38. Nd3 Bd6) 38. f4 $2 {[%emt 0:00:41]} (38. Nxc6 $11 {
and White is okay.} Bf6 39. Bxf6+ Rxf6 40. g4) 38... Bf6 {[%emt 0:00:00][%cal
Yg8e6]} 39. Bxf6+ {[%emt 0:02:12]} Rxf6 {[%emt 0:00:00][%cal Rf6h6] Endgame
KQR-KQN} 40. Kh3 {[%emt 0:00:41]} Qg6 {[%emt 0:05:18]} 41. Qd8+ {[%emt 0:02:27]
} Kg7 {[%emt 0:00:28]} 42. Qc7+ {[%emt 0:00:49]} Rf7 $2 {[%emt 0:02:11]} (42...
Qf7 $17 43. Qe5 Qe6+ 44. Kg2 Qxe5 45. fxe5 Re6) 43. Qe5+ $11 {[%emt 0:06:59]} (
43. Qxc6 Qh5+ 44. Kg2 Qe2+ 45. Kh3 Rf5 46. Qb7+ Kg6 47. Qa6+ (47. Qc6+ $2 Kh5
$19) 47... Kh5 $19) 43... Kg8 {[%emt 0:05:35]} 44. Qe8+ {[%emt 0:03:43]} Rf8 {
[%emt 0:04:31]} 45. Qxg6+ {[%emt 0:00:37] Remove Defender} hxg6 {[%emt 0:00:01]
} 46. Nxc6 {[%emt 0:00:09] KR-KN} Re8 {[%emt 0:00:00]} 47. Ne5 {[%emt 0:06:59]}
b4 {[%emt 0:04:03]} 48. Kg4 {[%emt 0:00:36] Black must now prevent c6.} Kg7 {
[%emt 0:00:25]} 49. c6 {[%emt 0:01:34] h4 is the strong threat.} Kf6 $1 {
[%emt 0:02:37]} 50. Kf3 {[%emt 0:04:11]} Rc8 $2 {[%emt 0:01:22]} (50... g5 $11)
51. Ke3 {[%emt 0:00:26]} g5 {[%emt 0:00:00]} (51... Ke7 52. h4 (52. Nxg6+ Kd6
$16) 52... Rg8) 52. Kd4 $18 {[%emt 0:00:00]} gxf4 {[%emt 0:00:27]} 53. gxf4 {
[%emt 0:00:21]} Ke6 {[%emt 0:00:05]} 54. Kc5 {[%emt 0:01:32]} d4 {[%emt 0:02:
19]} 55. Nd3 $2 {[%emt 0:05:22]} (55. h4 $18 {is more deadly.}) 55... Rh8 {
[%emt 0:01:59] [#]} (55... Rf8 $16) 56. Nxb4 $2 {[%emt 0:00:31]} (56. f5+ $1
$18 Ke7 57. Nxb4) 56... Rh5+ $11 {[%emt 0:00:41] The position is equal.} 57.
Kxd4 {[%emt 0:00:11] Threatens to win with c7.} Kd6 {[%emt 0:01:00]} 58. Kc4 {
[%emt 0:00:39]} Rxh2 {[%emt 0:00:00]} 59. f5 {[%emt 0:00:50]} Rf2 {[%emt 0:00:
23]} 60. Nd5 {[%emt 0:00:46] Hoping for c7.} Rc2+ {[%emt 0:01:06]} 61. Nc3 {
[%emt 0:00:18]} Kxc6 {[%emt 0:00:00]} 62. b4 {[%emt 0:00:05][%cal Yb3b4,Yb4b5]}
Rf2 {[%emt 0:00:22]} 63. Nb5 {[%emt 0:00:26]} Rc2+ {[%emt 0:02:02]} 64. Nc3 {
[%emt 0:00:22]} Rf2 {[%emt 0:00:25]} 65. b5+ {[%emt 0:01:05]} Kb7 {[%emt 0:00:
19]} 66. Ne4 {[%emt 0:00:00]} Rf4 {[%emt 0:00:56]} 67. Kd5 {[%emt 0:00:21]}
Rxf5+ {[%emt 0:00:19]} 68. Ke6 {[%emt 0:00:31] White threatens Nd6+ and mate.}
Rxb5 {[%emt 0:01:47]} 69. Nd6+ {[%emt 0:00:06]} Kb6 {[%emt 0:00:04]} 70. Nxb5 {
[%emt 0:00:05]} Kxb5 {[%emt 0:00:41]} 71. Ke5 {[%emt 0:00:35] Quite a comeback
for White. Weighted Error Value: White=0.44/Black=0.34} 1/2-1/2

[Event "44th Chess Olympiad Women 2022"]
[Site "Chennai"]
[Date "2022.08.05"]
[Round "7.32"]
[White "Ferrufino, Michelle"]
[Black "Otazo Sanchez, Annyd Gabriela"]
[Result "0-1"]
[WhiteElo "1811"]
[BlackElo "1932"]
[Annotator "NA RC"]
[PlyCount "102"]
[EventDate "2022.??.??"]
[TimeControl "60"]

1. e4 {[%emt 0:01:01]} e5 {[%emt 0:00:06]} 2. Nf3 {[%emt 0:00:28]} Nf6 {
[%emt 0:00:06]} 3. Nxe5 {[%emt 0:00:23]} d6 {[%emt 0:00:05]} 4. Nf3 {[%emt 0:
00:00]} Nxe4 {[%emt 0:00:05]} 5. Nc3 {[%emt 0:00:13]} Nxc3 {[%emt 0:00:11]} 6.
dxc3 {[%emt 0:00:11]} Be7 {[%emt 0:00:04]} 7. Be3 {[%emt 0:00:21]} O-O {
[%emt 0:00:10]} 8. Qd2 {[%emt 0:00:36]} Nd7 {[%emt 0:02:20]} 9. O-O-O {[%emt 0:
00:00]} c6 {[%emt 0:01:11]} 10. Bd3 {[%emt 0:01:08]} d5 {[%emt 0:01:57]} 11. h4
{[%emt 0:01:50]} Nc5 {[%emt 0:05:16]} 12. Bxc5 {[%emt 0:02:16]} Bxc5 {[%emt 0:
00:00]} 13. Ng5 {[%emt 0:02:08]} h6 {[%emt 0:10:32]} 14. Nh7 {[%emt 0:09:23]}
Re8 {[%emt 0:00:00]} 15. g4 {[%emt 0:00:12]} Bxg4 {[%emt 0:27:53]} 16. Rdg1 {
[%emt 0:00:38]} h5 {[%emt 0:01:32]} 17. Ng5 {[%emt 0:08:02]} Qf6 {[%emt 0:00:
00]} 18. Rg2 {[%emt 0:07:31]} Bd6 {[%emt 0:02:21]} 19. Kb1 {[%emt 0:07:43]} Bf4
{[%emt 0:00:49]} 20. Bh7+ {[%emt 0:00:12]} Kh8 {[%emt 0:07:24]} 21. Qd3 {
[%emt 0:02:28]} Bxg5 {[%emt 0:03:51]} 22. hxg5 {[%emt 0:00:46]} Qe6 {[%emt 0:
00:00]} 23. b3 {[%emt 0:03:17]} Be2 {[%emt 0:05:23]} 24. Bf5 {[%emt 0:14:40]}
Qe5 {[%emt 0:04:55]} 25. Qh3 {[%emt 0:06:05]} g6 {[%emt 0:00:45]} 26. Bg4 {
[%emt 0:02:01]} Bxg4 {[%emt 0:00:42]} 27. Rxg4 {[%emt 0:06:38]} Kg7 {[%emt 0:
00:00]} 28. Rg3 {[%emt 0:03:58]} a5 {[%emt 0:03:28]} 29. Qh4 {[%emt 0:02:39]}
Qe4 {[%emt 0:01:21]} 30. Qh3 {[%emt 0:03:26]} Qe2 {[%emt 0:02:07]} 31. f4 {
[%emt 0:05:21]} a4 {[%emt 0:00:52]} 32. b4 {[%emt 0:03:21]} a3 {[%emt 0:00:28]}
33. Rd3 {[%emt 0:03:14]} Qe1+ {[%emt 0:01:05]} 34. Rd1 {[%emt 0:00:09]} Qe3 {
[%emt 0:00:10]} 35. Qxe3 {[%emt 0:00:41]} Rxe3 {[%emt 0:00:02]} 36. f5 {
[%emt 0:01:41]} Rxc3 {[%emt 0:02:46]} 37. f6+ {[%emt 0:01:10]} Kf8 {[%emt 0:00:
00]} 38. Rde1 {[%emt 0:01:31]} Ra4 {[%emt 0:02:34]} 39. Re7 {[%emt 0:01:02]}
Rxb4+ {[%emt 0:00:05]} 40. Kc1 {[%emt 0:00:06]} Re4 {[%emt 0:01:34]} 41. Rxb7 {
[%emt 0:30:41]} Rg3 {[%emt 0:13:18]} 42. Rh4 {[%emt 0:00:00]} Ke8 {[%emt 0:00:
00]} 43. Rxe4+ {[%emt 0:00:00]} dxe4 {[%emt 0:00:07]} 44. Re7+ {[%emt 0:00:00]}
Kf8 {[%emt 0:04:22]} 45. Rc7 {[%emt 0:00:00]} Kg8 {[%emt 0:01:52]} 46. Rxc6 {
[%emt 0:00:00]} Rxg5 {[%emt 0:00:06]} 47. Rc8+ {[%emt 0:00:00]} Kh7 {[%emt 0:
00:00]} 48. Rc7 {[%emt 0:00:00]} h4 {[%emt 0:00:21]} 49. Rxf7+ {[%emt 0:00:00]}
Kg8 {[%emt 0:00:08]} 50. Rg7+ {[%emt 0:00:00]} Kf8 {[%emt 0:00:06]} 51. Kd2 {
[%emt 0:00:33]} h3 {[%emt 0:00:10]} 0-1

[Event "44th Chess Olympiad Women 2022"]
[Site "Chennai"]
[Date "2022.08.05"]
[Round "7.32"]
[White "Granados Ortiz, Maria Jose"]
[Black "Matute Escobar, Roxanny"]
[Result "0-1"]
[WhiteElo "1753"]
[BlackElo "1834"]
[Annotator "NA RC"]
[PlyCount "50"]
[EventDate "2022.??.??"]
[TimeControl "60"]

1. e4 {[%emt 0:00:03]} c5 {[%emt 0:00:14]} 2. Nf3 {[%emt 0:00:08]} d6 {[%emt 0:
00:00]} 3. d4 {[%emt 0:00:08]} cxd4 {[%emt 0:00:06]} 4. Nxd4 {[%emt 0:00:06]}
Nf6 {[%emt 0:00:07]} 5. Nc3 {[%emt 0:00:07]} g6 {[%emt 0:00:16]} 6. Be3 {
[%emt 0:05:42]} Bg7 {[%emt 0:00:16]} 7. f3 {[%emt 0:01:14]} O-O {[%emt 0:00:12]
} 8. Bc4 {[%emt 0:02:27]} Nc6 {[%emt 0:00:14]} 9. Qd2 {[%emt 0:01:02]} Bd7 {
[%emt 0:01:00]} 10. O-O-O {[%emt 0:00:33]} Rc8 {[%emt 0:00:09]} 11. Bb3 {
[%emt 0:00:08]} Nxd4 {[%emt 0:00:34]} 12. Bxd4 {[%emt 0:00:34]} b5 {[%emt 0:00:
00]} 13. Bxa7 {[%emt 0:17:02]} b4 {[%emt 0:04:25]} 14. Nd5 {[%emt 0:02:33]}
Nxd5 {[%emt 0:00:28]} 15. Bxd5 {[%emt 0:09:13]} Qc7 {[%emt 0:03:53]} 16. Be3 {
[%emt 0:01:39]} Ba4 {[%emt 0:01:25]} 17. b3 {[%emt 0:09:29]} Bb5 {[%emt 0:00:
00]} 18. c4 {[%emt 0:07:16]} bxc3 {[%emt 0:01:58]} 19. Qc2 {[%emt 0:00:50]} e6
{[%emt 0:00:32]} 20. Bc4 {[%emt 0:00:24]} Bxc4 {[%emt 0:00:06]} 21. bxc4 {
[%emt 0:00:01]} Qxc4 {[%emt 0:02:40]} 22. Rxd6 {[%emt 0:00:49]} Ra8 {[%emt 0:
00:00]} 23. Rhd1 {[%emt 0:08:00]} Rxa2 {[%emt 0:01:14]} 24. Qd3 {[%emt 0:00:15]
} Ra1+ {[%emt 0:00:08]} 25. Kc2 {[%emt 0:00:14]} Qa2# {[%emt 0:00:06]} 0-1

[Event "44th Chess Olympiad Women 2022"]
[Site "Chennai"]
[Date "2022.08.05"]
[Round "7.32"]
[White "Rovira Contreras, Tairu Manuela"]
[Black "Alvarez Gutierrez, Patricia"]
[Result "1-0"]
[WhiteElo "2036"]
[BlackElo "1715"]
[Annotator "NA"]
[PlyCount "67"]
[EventDate "2022.??.??"]
[TimeControl "60"]

1. d4 {[%emt 0:00:07]} d5 {[%emt 0:00:11]} 2. c4 {[%emt 0:00:34]} c6 {[%emt 0:
00:00]} 3. Nf3 {[%emt 0:00:10]} Nf6 {[%emt 0:00:17]} 4. Nc3 {[%emt 0:00:33]} a6
{[%emt 0:01:07]} 5. b3 {[%emt 0:05:13]} Bf5 {[%emt 0:02:00]} 6. Nh4 {[%emt 0:
00:00]} Bg4 {[%emt 0:01:33]} 7. h3 {[%emt 0:01:02]} Bh5 {[%emt 0:00:07]} 8. g4
{[%emt 0:01:18]} Bg6 {[%emt 0:00:15]} 9. Nxg6 {[%emt 0:04:05]} hxg6 {[%emt 0:
00:00]} 10. g5 {[%emt 0:00:43]} Ng8 {[%emt 0:08:55]} 11. Bg2 {[%emt 0:08:21]}
e6 {[%emt 0:01:17]} 12. Qd3 {[%emt 0:04:23]} Bb4 {[%emt 0:02:30]} 13. Kf1 {
[%emt 0:06:05]} Ne7 {[%emt 0:01:25]} 14. c5 {[%emt 0:06:10]} Nf5 {[%emt 0:00:
00]} 15. Bf4 {[%emt 0:05:45]} Bxc3 {[%emt 0:09:23]} 16. Qxc3 {[%emt 0:01:04]}
Nh4 {[%emt 0:01:02]} 17. Bf3 {[%emt 0:04:06]} Nxf3 {[%emt 0:01:12]} 18. Qxf3 {
[%emt 0:00:07]} Nd7 {[%emt 0:02:55]} 19. Qg3 {[%emt 0:01:29]} Rc8 {[%emt 0:00:
00]} 20. Kg2 {[%emt 0:02:41]} Qa5 {[%emt 0:05:06]} 21. a3 {[%emt 0:11:15]} Qb5
{[%emt 0:06:26]} 22. Rhe1 {[%emt 0:02:15]} O-O {[%emt 0:14:19]} 23. Qc3 {
[%emt 0:09:15]} a5 {[%emt 0:04:05]} 24. a4 {[%emt 0:04:14]} Qa6 {[%emt 0:00:41]
} 25. Bd6 {[%emt 0:00:23]} Rfe8 {[%emt 0:00:45]} 26. h4 {[%emt 0:00:45]} f6 {
[%emt 0:05:40]} 27. Qh3 {[%emt 0:05:09]} Kf7 {[%emt 0:01:26]} 28. e4 {[%emt 0:
00:00]} f5 {[%emt 0:12:36]} 29. exd5 {[%emt 0:03:07]} exd5 {[%emt 0:00:53]} 30.
h5 {[%emt 0:01:46]} Re4 {[%emt 0:01:53]} 31. Rxe4 {[%emt 0:07:40]} dxe4 {
[%emt 0:00:41]} 32. hxg6+ {[%emt 0:01:48]} Kxg6 {[%emt 0:01:07]} 33. Rh1 {
[%emt 0:00:32]} Nf8 {[%emt 0:05:14]} 34. Qh5# {[%emt 0:00:10]} 1-0

[Event "44th Chess Olympiad Women 2022"]
[Site "Chennai"]
[Date "2022.08.05"]
[Round "7.32"]
[White "Varela La Madrid, Tilsia Carolina"]
[Black "Granados Diaz, Maria Esther"]
[Result "1-0"]
[WhiteElo "2079"]
[BlackElo "1888"]
[Annotator "NA RC"]
[PlyCount "83"]
[EventDate "2022.??.??"]
[TimeControl "60"]

1. e4 {[%emt 0:00:08]} Nf6 {[%emt 0:00:23]} 2. e5 {[%emt 0:00:14]} Nd5 {
[%emt 0:00:04]} 3. c4 {[%emt 0:00:16]} Nb6 {[%emt 0:00:04]} 4. d4 {[%emt 0:00:
00]} d6 {[%emt 0:00:06]} 5. f4 {[%emt 0:00:23]} dxe5 {[%emt 0:00:11]} 6. fxe5 {
[%emt 0:00:06]} Nc6 {[%emt 0:00:40]} 7. Be3 {[%emt 0:01:10]} Bf5 {[%emt 0:00:
00]} 8. Nf3 {[%emt 0:00:51]} e6 {[%emt 0:00:11]} 9. Be2 {[%emt 0:01:06]} Bxb1 {
[%emt 0:16:34]} 10. Rxb1 {[%emt 0:01:29]} Bb4+ {[%emt 0:00:07]} 11. Kf2 {
[%emt 0:01:14]} O-O {[%emt 0:00:17]} 12. c5 {[%emt 0:02:18]} Nd5 {[%emt 0:00:
00]} 13. a3 {[%emt 0:00:59]} Ba5 {[%emt 0:02:25]} 14. b4 {[%emt 0:03:34]} Nc3 {
[%emt 0:00:30]} 15. Qc2 {[%emt 0:00:31]} Nxb1 {[%emt 0:00:37]} 16. Rxb1 {
[%emt 0:00:22]} f6 {[%emt 0:05:52]} 17. Kg1 {[%emt 0:05:08]} f5 {[%emt 0:08:00]
} 18. Bc4 {[%emt 0:01:29]} Qd7 {[%emt 0:12:09]} 19. Qb3 {[%emt 0:01:52]} Rae8 {
[%emt 0:00:55]} 20. Bxe6+ {[%emt 0:03:49]} Qxe6 {[%emt 0:06:24]} 21. d5 {
[%emt 0:01:27]} Qf7 {[%emt 0:06:28]} 22. dxc6 {[%emt 0:19:22]} Qxb3 {[%emt 0:
00:00]} 23. Rxb3 {[%emt 0:00:05]} bxc6 {[%emt 0:01:13]} 24. bxa5 {[%emt 0:00:
00]} Rb8 {[%emt 0:00:06]} 25. Rd3 {[%emt 0:00:20]} Rfd8 {[%emt 0:00:30]} 26.
Rxd8+ {[%emt 0:02:08]} Rxd8 {[%emt 0:00:06]} 27. Nd4 {[%emt 0:00:07]} f4 {
[%emt 0:01:18]} 28. Bf2 {[%emt 0:00:04]} Rd5 {[%emt 0:00:56]} 29. Nf3 {[%emt 0:
00:00]} Rd1+ {[%emt 0:02:22]} 30. Be1 {[%emt 0:00:11]} Rc1 {[%emt 0:01:33]} 31.
Kf1 {[%emt 0:01:12]} Rxc5 {[%emt 0:00:30]} 32. Ke2 {[%emt 0:02:09]} Rc2+ {
[%emt 0:00:52]} 33. Bd2 {[%emt 0:00:28]} c5 {[%emt 0:00:27]} 34. Kd3 {[%emt 0:
00:00]} Ra2 {[%emt 0:00:15]} 35. Kc4 {[%emt 0:00:25]} Rxa3 {[%emt 0:02:57]} 36.
Kxc5 {[%emt 0:00:19]} Ra2 {[%emt 0:00:34]} 37. Kc6 {[%emt 0:00:29]} g5 {
[%emt 0:02:16]} 38. e6 {[%emt 0:00:55]} Ra3 {[%emt 0:16:44]} 39. Ne5 {[%emt 0:
00:00]} Ra2 {[%emt 0:04:42]} 40. e7 {[%emt 0:00:31]} Rc2+ {[%emt 0:00:15]} 41.
Kb7 {[%emt 0:30:13]} Rb2+ {[%emt 0:30:59]} 42. Kxa7 {[%emt 0:00:18]} 1-0

[Event "44th Chess Olympiad Women 2022"]
[Site "Chennai"]
[Date "2022.08.05"]
[Round "7.33"]
[White "Silva, Ana Ines Teixeira D"]
[Black "Sezdbekova Aizhan"]
[Result "1/2-1/2"]
[WhiteElo "1775"]
[BlackElo "1615"]
[Annotator "NA"]
[PlyCount "75"]
[EventDate "2022.??.??"]
[TimeControl "60"]

1. e4 {[%emt 0:00:03]} e5 {[%emt 0:00:12]} 2. Nf3 {[%emt 0:00:06]} Nc6 {
[%emt 0:00:12]} 3. Nc3 {[%emt 0:00:06]} Nf6 {[%emt 0:00:44]} 4. d4 {[%emt 0:00:
00]} exd4 {[%emt 0:00:56]} 5. Nxd4 {[%emt 0:00:10]} Bb4 {[%emt 0:00:37]} 6.
Nxc6 {[%emt 0:00:19]} bxc6 {[%emt 0:00:47]} 7. Bd3 {[%emt 0:00:15]} d5 {
[%emt 0:03:16]} 8. exd5 {[%emt 0:00:36]} cxd5 {[%emt 0:01:05]} 9. O-O {[%emt 0:
00:00]} O-O {[%emt 0:01:05]} 10. h3 {[%emt 0:01:57]} h6 {[%emt 0:04:09]} 11.
Bf4 {[%emt 0:03:53]} c6 {[%emt 0:04:43]} 12. Qf3 {[%emt 0:05:05]} Bd6 {[%emt 0:
00:00]} 13. Ne2 {[%emt 0:04:09]} Bxf4 {[%emt 0:11:10]} 14. Qxf4 {[%emt 0:08:15]
} Nh5 {[%emt 0:21:10]} 15. Qf3 {[%emt 0:09:43]} Qg5 {[%emt 0:02:26]} 16. c4 {
[%emt 0:09:26]} Be6 {[%emt 0:09:03]} 17. Rac1 {[%emt 0:10:44]} Rad8 {[%emt 0:
00:00]} 18. cxd5 {[%emt 0:09:53]} Bxd5 {[%emt 0:03:25]} 19. Be4 {[%emt 0:02:09]
} Bxe4 {[%emt 0:02:49]} 20. Qxe4 {[%emt 0:00:09]} Rfe8 {[%emt 0:00:12]} 21. Qf3
{[%emt 0:04:07]} Rd6 {[%emt 0:05:05]} 22. Ng3 {[%emt 0:24:07]} Nxg3 {[%emt 0:
00:00]} 23. fxg3 {[%emt 0:02:15]} Qe3+ {[%emt 0:00:47]} 24. Qxe3 {[%emt 0:00:
00]} Rxe3 {[%emt 0:00:06]} 25. g4 {[%emt 0:01:33]} Re2 {[%emt 0:00:23]} 26. Rf3
{[%emt 0:01:09]} Rxb2 {[%emt 0:01:02]} 27. Ra3 {[%emt 0:00:18]} Rb7 {[%emt 0:
00:00]} 28. Ra6 {[%emt 0:00:12]} Rc7 {[%emt 0:00:09]} 29. Rc5 {[%emt 0:00:57]}
Kf8 {[%emt 0:00:51]} 30. Kf2 {[%emt 0:00:18]} Re6 {[%emt 0:00:44]} 31. g5 {
[%emt 0:00:31]} h5 {[%emt 0:01:29]} 32. Ra4 {[%emt 0:00:38]} g6 {[%emt 0:01:01]
} 33. Kf3 {[%emt 0:00:25]} Rd7 {[%emt 0:03:39]} 34. Ra6 {[%emt 0:00:33]} Rc7 {
[%emt 0:00:10]} 35. Rca5 {[%emt 0:00:18]} Ree7 {[%emt 0:01:17]} 36. Rc5 {
[%emt 0:00:08]} Re6 {[%emt 0:06:45]} 37. Rca5 {[%emt 0:00:08]} Ree7 {[%emt 0:
00:00]} 38. Rc5 {[%emt 0:00:14]} 1/2-1/2

[Event "44th Chess Olympiad Women 2022"]
[Site "Chennai"]
[Date "2022.08.05"]
[Round "7.33"]
[White "Silva, Mariana Sofia T."]
[Black "Samaganova, Alexandra"]
[Result "0-1"]
[WhiteElo "1912"]
[BlackElo "1864"]
[Annotator "NA RC"]
[PlyCount "110"]
[EventDate "2022.??.??"]
[TimeControl "60"]

1. d4 {[%emt 0:00:02]} Nf6 {[%emt 0:00:16]} 2. c4 {[%emt 0:00:08]} e6 {[%emt 0:
00:00]} 3. g3 {[%emt 0:00:06]} d5 {[%emt 0:00:55]} 4. Bg2 {[%emt 0:00:06]} c5 {
[%emt 0:00:55]} 5. cxd5 {[%emt 0:00:19]} Nxd5 {[%emt 0:08:39]} 6. Nf3 {[%emt 0:
00:00]} Nc6 {[%emt 0:02:51]} 7. O-O {[%emt 0:00:42]} Be7 {[%emt 0:05:04]} 8.
dxc5 {[%emt 0:01:09]} Bxc5 {[%emt 0:02:14]} 9. Qc2 {[%emt 0:00:33]} Qe7 {
[%emt 0:07:45]} 10. a3 {[%emt 0:02:44]} a5 {[%emt 0:05:20]} 11. e4 {[%emt 0:00:
00]} Nc7 {[%emt 0:07:33]} 12. e5 {[%emt 0:05:07]} f6 {[%emt 0:14:56]} 13. exf6
{[%emt 0:05:02]} gxf6 {[%emt 0:00:14]} 14. Nc3 {[%emt 0:03:14]} O-O {[%emt 0:
00:00]} 15. Bh6 {[%emt 0:05:33]} Rf7 {[%emt 0:02:36]} 16. Rad1 {[%emt 0:07:38]}
e5 {[%emt 0:03:57]} 17. Ne4 {[%emt 0:09:41]} Bd4 {[%emt 0:02:44]} 18. h3 {
[%emt 0:09:53]} Be6 {[%emt 0:02:29]} 19. Rfe1 {[%emt 0:02:55]} Rd8 {[%emt 0:00:
00]} 20. Qa4 {[%emt 0:15:36]} Bb6 {[%emt 0:07:07]} 21. Rxd8+ {[%emt 0:01:50]}
Nxd8 {[%emt 0:00:44]} 22. Rd1 {[%emt 0:00:31]} Bd5 {[%emt 0:06:08]} 23. Nc3 {
[%emt 0:01:22]} Bc6 {[%emt 0:03:33]} 24. Qg4+ {[%emt 0:03:31]} Kh8 {[%emt 0:00:
00]} 25. Nh4 {[%emt 0:01:26]} Nce6 {[%emt 0:01:02]} 26. Nf5 {[%emt 0:00:48]}
Qc7 {[%emt 0:00:41]} 27. Nd5 {[%emt 0:03:03]} Bxd5 {[%emt 0:00:11]} 28. Bxd5 {
[%emt 0:00:14]} Rd7 {[%emt 0:02:38]} 29. Rc1 {[%emt 0:02:39]} Qb8 {[%emt 0:00:
00]} 30. Ng7 {[%emt 0:07:17]} Rxg7 {[%emt 0:01:15]} 31. Bxg7+ {[%emt 0:00:08]}
Nxg7 {[%emt 0:01:30]} 32. Qd7 {[%emt 0:01:13]} e4 {[%emt 0:00:10]} 33. Kg2 {
[%emt 0:00:40]} Qe5 {[%emt 0:00:51]} 34. Rc8 {[%emt 0:00:59]} e3 {[%emt 0:00:
00]} 35. Rxd8+ {[%emt 0:00:52]} Bxd8 {[%emt 0:00:01]} 36. Qxd8+ {[%emt 0:00:10]
} Ne8 {[%emt 0:00:20]} 37. fxe3 {[%emt 0:01:35]} Qxe3 {[%emt 0:00:25]} 38. Bf3
{[%emt 0:01:20]} Qe5 {[%emt 0:00:47]} 39. h4 {[%emt 0:02:53]} Qxb2+ {[%emt 0:
00:00]} 40. Kh3 {[%emt 0:00:15]} Qe5 {[%emt 0:00:43]} 41. Qc8 {[%emt 0:05:51]}
Kg7 {[%emt 0:10:19]} 42. Qd7+ {[%emt 0:03:35]} Kf8 {[%emt 0:13:47]} 43. Qxh7 {
[%emt 0:04:46]} Ng7 {[%emt 0:01:42]} 44. Bg4 {[%emt 0:08:24]} Qd5 {[%emt 0:00:
00]} 45. Qb1 {[%emt 0:03:10]} f5 {[%emt 0:01:47]} 46. Qf1 {[%emt 0:01:02]} Ke7
{[%emt 0:00:49]} 47. Bf3 {[%emt 0:00:10]} Qb3 {[%emt 0:00:42]} 48. Qe2+ {
[%emt 0:02:23]} Ne6 {[%emt 0:00:39]} 49. a4 {[%emt 0:02:42]} Kf6 {[%emt 0:00:
00]} 50. Qd1 {[%emt 0:01:30]} Qc3 {[%emt 0:01:44]} 51. Kh2 {[%emt 0:02:18]} b6
{[%emt 0:01:16]} 52. h5 {[%emt 0:01:27]} Nd4 {[%emt 0:00:38]} 53. Bg2 {[%emt 0:
00:00]} Kg5 {[%emt 0:00:44]} 54. Qb1 {[%emt 0:00:59]} Ne2 {[%emt 0:00:28]} 55.
Bf1 {[%emt 0:01:02]} Qxg3+ {[%emt 0:00:11]} 0-1